bitfinex-derivatives/quotes_BTCF0:USTF0_20250811
["timestamp","ask_amount","ask_price","bid_price","bid_amount"]
[1754883112416,0.76564181,121690.0,121680.0,1.49122427]
[1754883112624,0.76564181,121690.0,121680.0,1.57340366]
[1754883113219,0.76564181,121690.0,121680.0,1.03898202]
[1754883113419,0.76564181,121690.0,121680.0,1.30619284]
[1754883114129,0.00016181,121690.0,121680.0,1.30819284]
[1754883114316,0.76564181,121690.0,121680.0,1.41679284]
[1754883115622,0.96835181,121690.0,121680.0,0.68018202]
[1754883115822,1.05200031,121690.0,121680.0,0.44837202]
[1754883116015,1.42781113,121690.0,121680.0,0.27554289]
[1754883116321,1.05200031,121690.0,121680.0,0.27554289]
[1754883116721,0.00016181,121690.0,121680.0,1.12105371]
[1754883116922,0.76708181,121690.0,121680.0,1.12105371]
[1754883117224,0.84166181,121690.0,121680.0,1.12305371]
[1754883117422,0.92331181,121690.0,121680.0,1.31497508]
[1754883117619,0.00216181,121690.0,121680.0,1.67377508]
[1754883117919,0.00216181,121690.0,121680.0,1.29796426]
[1754883117920,0.76928181,121690.0,121680.0,1.29796426]
[1754883118221,0.76928181,121690.0,121680.0,1.67377508]
[1754883118222,0.78352181,121690.0,121680.0,1.67377508]
[1754883118522,0.78352181,121690.0,121680.0,1.67477508]
[1754883118724,0.00016181,121690.0,121680.0,1.67477508]
[1754883118924,0.78604181,121690.0,121680.0,1.67477508]
[1754883119718,0.78604181,121690.0,121680.0,1.48285371]
[1754883120320,0.78404181,121690.0,121680.0,1.48385371]
[1754883120623,0.78404181,121690.0,121680.0,1.48485371]
[1754883121122,0.78404181,121690.0,121680.0,1.48885371]
[1754883121317,0.00026181,121690.0,121680.0,1.48885371]
[1754883121522,0.90720181,121690.0,121680.0,1.48885371]
[1754883121722,0.90700181,121690.0,121680.0,1.48885371]
[1754883121924,0.90688181,121690.0,121680.0,1.63635328]
[1754883122420,0.00016181,121690.0,121680.0,1.63635328]
[1754883122626,0.78300181,121690.0,121680.0,1.48885371]
[1754883123028,0.78300181,121690.0,121680.0,1.63633965]
[1754883123421,0.78300181,121690.0,121680.0,1.63533965]
[1754883124223,0.78296181,121690.0,121680.0,1.63533965]
[1754883125230,0.78296181,121690.0,121680.0,1.63633965]
[1754883125730,0.78296181,121690.0,121680.0,1.89913965]
[1754883126027,0.43796,121710.0,121700.0,0.30794]
[1754883126223,1.22056,121710.0,121700.0,1.35590693]
[1754883126419,0.90031643,121710.0,121700.0,1.47903899]
[1754883126820,0.04055643,121710.0,121700.0,1.56121838]
[1754883127130,0.78228,121710.0,121700.0,1.56121838]
[1754883127330,0.07726,121710.0,121700.0,1.75256881]
[1754883127531,0.90588,121710.0,121700.0,1.75256881]
[1754883127724,0.90688,121710.0,121700.0,1.75256881]
[1754883128125,0.90688,121710.0,121700.0,1.5167527]
[1754883128126,0.97228,121710.0,121700.0,1.5167527]
[1754883128524,0.97228,121710.0,121700.0,1.32550227]
[1754883128833,0.97328,121710.0,121700.0,1.32550227]
[1754883130932,0.97328,121710.0,121700.0,1.5167527]
[1754883131129,0.18581837,121710.0,121700.0,1.5167527]
[1754883131334,0.96717837,121710.0,121700.0,1.66359599]
[1754883132128,0.96717837,121710.0,121700.0,1.47234556]
[1754883134635,0.96717837,121710.0,121700.0,1.32550227]
[1754883135025,0.90177837,121710.0,121700.0,1.32550227]
[1754883135435,0.96717837,121710.0,121700.0,1.47234556]
[1754883136233,0.18581837,121710.0,121700.0,1.47234556]
[1754883136433,0.96525837,121710.0,121700.0,1.47234556]
[1754883136637,0.31443337,121710.0,121700.0,1.09653474]
[1754883136836,1.01139837,121710.0,121700.0,1.09653474]
[1754883137137,1.01111837,121710.0,121700.0,0.94969145]
[1754883138431,1.01111837,121710.0,121700.0,1.32550227]
[1754883140533,1.00126299,121710.0,121700.0,1.32540227]
[1754883140739,0.95480299,121710.0,121700.0,1.32540227]
[1754883141433,0.95364299,121710.0,121700.0,1.32540227]
[1754883141636,0.17596299,121710.0,121700.0,1.32540227]
[1754883141836,0.95374299,121710.0,121700.0,1.32550227]
[1754883142035,0.17606299,121710.0,121700.0,1.47236289]
[1754883142342,0.95374299,121710.0,121700.0,1.47236289]
[1754883143745,0.17606299,121710.0,121700.0,1.47236289]
[1754883143943,0.95362299,121710.0,121700.0,1.47236289]
[1754883144531,0.95362299,121710.0,121700.0,1.32550227]
[1754883144736,0.04325837,121710.0,121700.0,1.68630227]
[1754883144937,0.77902,121710.0,121700.0,1.68630227]
[1754883145242,0.7791,121710.0,121700.0,1.68630227]
[1754883146244,0.7791,121710.0,121700.0,1.57763493]
[1754883147438,0.92114,121710.0,121700.0,0.94969145]
[1754883147633,0.9578,121710.0,121700.0,0.94969145]
[1754883147842,0.9578,121710.0,121700.0,1.21683493]
[1754883148339,0.624315,121710.0,121700.0,0.51788145]
[1754883148535,1.400515,121710.0,121700.0,0.25508145]
[1754883150948,0.624315,121710.0,121700.0,0.25508145]
[1754883151150,1.399875,121710.0,121700.0,0.25508145]
[1754883151449,0.624315,121710.0,121700.0,0.25508145]
[1754883151945,1.399715,121710.0,121700.0,0.25508145]
[1754883154045,1.399195,121710.0,121700.0,0.25508145]
[1754883154748,1.38933912,121710.0,121700.0,0.25498145]
[1754883155453,1.39133912,121710.0,121700.0,0.44590025]
[1754883155954,1.39233912,121710.0,121700.0,0.44590025]
[1754883156157,1.04339393,121710.0,121700.0,0.54399827]
[1754883156448,0.564942,121670.0,121660.0,0.50332124]
[1754883156750,1.68062723,121670.0,121660.0,0.29372124]
[1754883157049,1.68066723,121670.0,121660.0,0.75756153]
[1754883157353,1.68086723,121670.0,121660.0,0.75764661]
[1754883157551,1.68096723,121670.0,121660.0,0.75774661]
[1754883158150,1.72221556,121670.0,121660.0,0.46402537]
[1754883158351,1.72221556,121670.0,121660.0,0.68431537]
[1754883158549,1.72221556,121670.0,121660.0,0.68631537]
[1754883158949,1.72221556,121670.0,121660.0,0.69031537]
[1754883159745,0.88490833,121670.0,121660.0,1.06615018]
[1754883159951,0.88490833,121670.0,121660.0,1.06215018]
[1754883159952,1.61095833,121670.0,121660.0,1.06215018]
[1754883160453,0.76617833,121670.0,121660.0,1.06215018]
[1754883160655,1.17985833,121670.0,121660.0,1.42095018]
[1754883160853,0.04134833,121670.0,121660.0,1.42095018]
[1754883161052,0.81570833,121670.0,121660.0,1.42095018]
[1754883161652,0.81570833,121670.0,121660.0,1.42605018]
[1754883161850,0.0001,121670.0,121660.0,1.42605018]
[1754883162147,0.77426,121670.0,121660.0,1.42605018]
[1754883162352,0.0001,121670.0,121660.0,1.42605018]
[1754883162555,0.94483,121670.0,121660.0,1.42605018]
[1754883162952,1.13829,121670.0,121660.0,1.42805018]
[1754883163149,1.20863,121670.0,121660.0,1.42805018]
[1754883163349,1.29737374,121670.0,121660.0,1.42805018]
[1754883163547,1.29741374,121670.0,121660.0,1.42805018]
[1754883164758,1.28755647,121670.0,121660.0,1.42695018]
[1754883165548,1.28755647,121670.0,121660.0,1.42595018]
[1754883165755,0.51343647,121670.0,121660.0,1.42595018]
[1754883165955,1.28809647,121670.0,121660.0,1.42605018]
[1754883166262,1.23970647,121670.0,121660.0,1.42605018]
[1754883166762,1.23970647,121670.0,121660.0,1.42195018]
[1754883167061,1.16936647,121670.0,121660.0,1.68475018]
[1754883168155,0.46514647,121670.0,121660.0,1.68475018]
[1754883168362,1.28813647,121670.0,121660.0,1.68475018]
[1754883168962,1.28813647,121670.0,121660.0,1.92072175]
[1754883169858,0.46514647,121670.0,121660.0,1.92072175]
[1754883170068,0.0001,121670.0,121660.0,1.92072175]
[1754883170368,0.77478,121670.0,121660.0,1.81219822]
[1754883170864,0.77478,121670.0,121660.0,1.57622665]
[1754883171164,0.0001,121670.0,121660.0,1.82791789]
[1754883171362,0.77482,121670.0,121660.0,1.66353389]
[1754883171559,0.77482,121670.0,121660.0,1.57622665]
[1754883171966,0.0001,121670.0,121660.0,1.57622665]
[1754883172264,0.77494,121670.0,121660.0,1.57622665]
[1754883172464,0.0001,121670.0,121660.0,1.57622665]
[1754883172663,0.77482,121670.0,121660.0,1.57622665]
[1754883172863,0.0001,121670.0,121660.0,1.57622665]
[1754883173064,0.77482,121670.0,121660.0,1.57622665]
[1754883173361,0.0001,121670.0,121660.0,1.57622665]
[1754883173557,0.77482,121670.0,121660.0,1.57622665]
[1754883174064,0.0001,121670.0,121660.0,1.57622665]
[1754883174260,0.77466,121670.0,121660.0,1.57622665]
[1754883174563,0.77454,121670.0,121660.0,1.57622665]
[1754883174753,0.76468294,121670.0,121660.0,1.57612665]
[1754883174959,0.93525294,121670.0,121660.0,1.57612665]
[1754883175364,1.04617,121670.0,121660.0,1.57612665]
[1754883175564,0.94485,121670.0,121660.0,1.57612665]
[1754883175859,0.52325946,121680.0,121670.0,0.47899]
[1754883176067,0.60553516,121680.0,121670.0,0.74630128]
[1754883176257,1.38353516,121680.0,121670.0,0.87415218]
[1754883176457,1.38353516,121680.0,121670.0,0.95633833]
[1754883176863,1.38333516,121680.0,121670.0,0.95633833]
[1754883177357,0.60553516,121680.0,121670.0,0.95633833]
[1754883177564,1.38417516,121680.0,121670.0,0.95633833]
[1754883178262,0.60653516,121680.0,121670.0,0.95633833]
[1754883178462,1.38389516,121680.0,121670.0,0.95633833]
[1754883178860,1.38389516,121680.0,121670.0,1.21913833]
[1754883179864,0.60653516,121680.0,121670.0,1.21913833]
[1754883180069,1.38349516,121680.0,121670.0,1.21913833]
[1754883180960,0.60653516,121680.0,121670.0,1.15105833]
[1754883181161,1.38313516,121680.0,121670.0,1.21913833]
[1754883181465,0.60653516,121680.0,121670.0,1.21913833]
[1754883181667,1.38305516,121680.0,121670.0,1.21913833]
[1754883182462,1.30087946,121680.0,121670.0,0.95182705]
[1754883182665,0.0011,121680.0,121670.0,0.95633833]
[1754883182964,0.0011,121680.0,121670.0,1.67466408]
[1754883183160,0.77786,121680.0,121670.0,1.67466408]
[1754883183366,0.0011,121680.0,121670.0,1.57993833]
[1754883183564,0.94819,121680.0,121670.0,1.31713833]
[1754883183765,0.17167,121680.0,121670.0,1.31713833]
[1754883183967,0.94819,121680.0,121670.0,1.31713833]
[1754883184268,0.94819,121680.0,121670.0,1.81713833]
[1754883185357,0.17167,121680.0,121670.0,1.81713833]
[1754883185566,0.7779,121680.0,121670.0,1.81713833]
[1754883186865,0.0011,121680.0,121670.0,1.81713833]
[1754883187069,0.0011,121680.0,121670.0,1.81303833]
[1754883187367,0.77966,121680.0,121670.0,1.54572705]
[1754883187567,0.77966,121680.0,121670.0,1.81303833]
[1754883187767,0.7797,121680.0,121670.0,2.07583833]
[1754883188162,0.94405,121680.0,121670.0,2.07583833]
[1754883188772,0.16545,121680.0,121670.0,1.80852705]
[1754883188966,0.94429,121680.0,121670.0,2.07583833]
[1754883189472,0.77994,121680.0,121670.0,2.07583833]
[1754883190572,0.77994,121680.0,121670.0,1.80852705]
[1754883190768,0.77994,121680.0,121670.0,2.07583833]
[1754883191574,0.94429,121680.0,121670.0,2.07583833]
[1754883191867,0.4312,121680.0,121670.0,2.04477614]
[1754883192065,1.21216,121680.0,121670.0,2.31618742]
[1754883192265,0.47776,121680.0,121670.0,1.44900614]
[1754883192461,0.47776,121680.0,121670.0,1.68975614]
[1754883192667,1.3409357,121680.0,121670.0,1.95706742]
[1754883192972,1.3408957,121680.0,121670.0,1.61995614]
[1754883193361,1.3409357,121680.0,121670.0,1.11995614]
[1754883193567,1.3409357,121680.0,121670.0,0.78871614]
[1754883193772,0.5599357,121680.0,121670.0,0.44628614]
[1754883193972,1.3413757,121680.0,121670.0,0.21003705]
[1754883194575,1.7021757,121680.0,121670.0,0.21003705]
[1754883195070,1.23804698,121680.0,121670.0,0.16003705]
[1754883195274,0.3857224,121670.0,121660.0,0.00018508]
[1754883195471,1.08492368,121670.0,121660.0,0.00018508]
[1754883195673,1.5986524,121670.0,121660.0,0.16955596]
[1754883195875,1.5986524,121670.0,121660.0,0.25174211]
[1754883196774,0.8176124,121670.0,121660.0,0.44598211]
[1754883196975,1.6090524,121670.0,121660.0,0.61693211]
[1754883197276,0.6045124,121670.0,121660.0,1.06383057]
[1754883197478,1.6088924,121670.0,121660.0,1.06383057]
[1754883197884,1.6108924,121670.0,121660.0,1.06283057]
[1754883198071,1.6108924,121670.0,121660.0,0.68673211]
[1754883199172,1.16591,121670.0,121660.0,0.68673211]
[1754883199371,1.16691,121670.0,121660.0,0.68673211]
[1754883199880,1.2490924,121670.0,121660.0,0.44598211]
[1754883200176,1.2486124,121670.0,121660.0,0.68673211]
[1754883200374,1.2486124,121670.0,121660.0,0.69083211]
[1754883204981,1.16643,121670.0,121660.0,0.69083211]
[1754883205373,0.04803,121670.0,121660.0,1.06693057]
[1754883205578,0.78956,121670.0,121660.0,1.06693057]
[1754883205773,0.9786,121670.0,121660.0,1.06693057]
[1754883206080,1.04969,121670.0,121660.0,1.06693057]
[1754883206481,1.04869,121670.0,121660.0,1.06693057]
[1754883206783,1.04869,121670.0,121660.0,1.06793057]
[1754883207480,0.4568124,121670.0,121660.0,0.69183211]
[1754883207784,1.2445324,121670.0,121660.0,0.69183211]
[1754883207984,0.4568124,121670.0,121660.0,0.69183211]
[1754883208182,1.2444924,121670.0,121660.0,0.69183211]
[1754883208783,1.2444924,121670.0,121660.0,0.68773211]
[1754883209084,1.16231,121670.0,121660.0,0.68773211]
[1754883210395,1.16231,121670.0,121660.0,0.68673211]
[1754883210691,1.16331,121670.0,121660.0,0.28481211]
[1754883211390,1.16331,121670.0,121660.0,0.83148211]
[1754883211592,0.37563,121670.0,121660.0,0.94953211]
[1754883211789,1.16247,121670.0,121660.0,0.94953211]
[1754883212795,0.04803,121670.0,121660.0,1.32563057]
[1754883213086,0.97704,121670.0,121660.0,1.32563057]
[1754883213395,0.83503,121670.0,121660.0,1.32563057]
[1754883214493,1.04813,121670.0,121660.0,1.32563057]
[1754883215486,1.04813,121670.0,121660.0,1.68643057]
[1754883216294,1.04813,121670.0,121660.0,1.58175871]
[1754883216486,0.26113,121670.0,121660.0,1.58175871]
[1754883216691,1.04761,121670.0,121660.0,1.58175871]
[1754883218787,1.04761,121670.0,121660.0,1.87547995]
[1754883220695,0.78644,121670.0,121660.0,1.87547995]
[1754883220993,0.78644,121670.0,121660.0,1.58175871]
[1754883221387,0.78644,121670.0,121660.0,1.67403642]
[1754883222289,0.78644,121670.0,121660.0,2.17403642]
[1754883222889,0.78644,121670.0,121660.0,2.46775766]
[1754883223093,0.0001,121680.0,121660.0,2.47228426]
[1754883223297,0.0001,121680.0,121670.0,1.0938366]
[1754883223496,0.78574,121680.0,121670.0,1.13565907]
[1754883223698,0.78574,121680.0,121670.0,1.25899942]
[1754883223999,0.78574,121680.0,121670.0,1.34118894]
[1754883225396,0.78674,121680.0,121670.0,1.34118894]
[1754883225697,0.78774,121680.0,121670.0,1.34118894]
[1754883225995,0.78774,121680.0,121670.0,1.84118894]
[1754883227195,0.78774,121680.0,121670.0,1.79936647]
[1754883227589,0.78618,121680.0,121670.0,1.79936647]
[1754883228599,0.78618,121680.0,121670.0,1.53203987]
[1754883228894,0.78618,121680.0,121670.0,1.79936647]
[1754883229091,0.92819,121680.0,121670.0,1.79936647]
[1754883229497,0.99857,121680.0,121670.0,1.79936647]
[1754883229695,1.04736,121680.0,121670.0,1.79936647]
[1754883230990,1.04732,121680.0,121670.0,1.79936647]
[1754883231496,1.15902,121680.0,121670.0,1.79936647]
[1754883232494,1.15906,121680.0,121670.0,1.79936647]
[1754883233602,1.15862,121680.0,121670.0,1.79936647]
[1754883234897,1.15822,121680.0,121670.0,1.79936647]
[1754883235097,1.15822,121680.0,121670.0,2.03572149]
[1754883237307,1.15822,121680.0,121670.0,1.79936647]
[1754883237496,0.37502,121680.0,121670.0,1.53203987]
[1754883237699,1.1583,121680.0,121670.0,1.79936647]
[1754883238200,1.1583,121680.0,121670.0,2.06216647]
[1754883238806,0.83421,121680.0,121670.0,2.06216647]
[1754883239605,1.0466,121680.0,121670.0,2.06216647]
[1754883241608,0.37663,121680.0,121670.0,1.64511647]
[1754883241907,1.2426057,121680.0,121670.0,1.01698987]
[1754883242106,1.16043,121680.0,121670.0,1.01698987]
[1754883242406,0.4598057,121680.0,121670.0,0.51698987]
[1754883242606,1.2423257,121680.0,121670.0,0.51698987]
[1754883243208,0.4598057,121680.0,121670.0,0.81071111]
[1754883243409,1.2423257,121680.0,121670.0,0.81071111]
[1754883244112,1.2423257,121680.0,121670.0,0.54791111]
[1754883245212,1.2423257,121680.0,121670.0,0.25418987]
[1754883245808,0.8206057,121680.0,121670.0,0.20552987]
[1754883246009,1.6023257,121680.0,121670.0,0.20552987]
[1754883246512,1.6023257,121680.0,121670.0,0.25057987]
[1754883247008,1.25230831,121680.0,121670.0,0.06251987]
[1754883247211,2.03370831,121680.0,121670.0,0.06251987]
[1754883247414,2.03370831,121680.0,121670.0,0.18657497]
[1754883247915,2.03370831,121680.0,121670.0,0.19067497]
[1754883248316,1.76638171,121680.0,121670.0,0.19067497]
[1754883248517,2.03370831,121680.0,121670.0,0.19067497]
[1754883248715,0.98398171,121680.0,121670.0,0.19067497]
[1754883248923,1.76734171,121680.0,121670.0,0.19067497]
[1754883249118,1.76734171,121680.0,121670.0,0.23572497]
[1754883249317,1.76634171,121680.0,121670.0,0.23572497]
[1754883249618,1.76834171,121680.0,121670.0,0.23572497]
[1754883251208,1.76834171,121680.0,121670.0,0.19067497]
[1754883251621,1.76834171,121680.0,121670.0,0.42699529]
[1754883252016,2.03566831,121680.0,121670.0,0.42699529]
[1754883252218,1.76834171,121680.0,121670.0,0.42699529]
[1754883252921,2.03554831,121680.0,121670.0,0.47204529]
[1754883253222,1.76822171,121680.0,121670.0,0.47204529]
[1754883254022,1.76810171,121680.0,121670.0,0.47204529]
[1754883254223,0.98698171,121680.0,121670.0,0.47204529]
[1754883254422,1.76770171,121680.0,121670.0,0.47204529]
[1754883254625,1.6033257,121680.0,121670.0,0.47204529]
[1754883255625,1.6033257,121680.0,121670.0,0.23572497]
[1754883257122,1.6026057,121680.0,121670.0,0.23572497]
[1754883260127,1.8697323,121680.0,121670.0,0.19067497]
[1754883260328,1.6024057,121680.0,121670.0,0.19067497]
[1754883260533,1.6024057,121680.0,121670.0,0.23572497]
[1754883260926,1.6025257,121680.0,121670.0,0.23572497]
[1754883261932,1.6025257,121680.0,121670.0,0.19067497]
[1754883262119,1.6025257,121680.0,121670.0,0.07617497]
[1754883262120,2.03322831,121680.0,121670.0,0.07617497]
[1754883262325,2.30031491,121680.0,121670.0,0.07617497]
[1754883262526,2.03298831,121680.0,121670.0,0.15836112]
[1754883263331,2.02898831,121680.0,121670.0,0.15836112]
[1754883263531,2.03298831,121680.0,121670.0,0.15836112]
[1754883266529,1.52063491,121680.0,121670.0,0.08218615]
[1754883266726,2.29987491,121680.0,121670.0,1e-08]
[1754883266922,1.25330831,121680.0,121670.0,0.12312951]
[1754883267122,2.03186831,121680.0,121670.0,0.12312951]
[1754883270524,2.03186831,121680.0,121670.0,0.16817951]
[1754883270838,2.03186831,121680.0,121670.0,0.12312951]
[1754883271636,2.02858831,121680.0,121670.0,0.12312951]
[1754883271825,2.03058831,121680.0,121670.0,0.12722951]
[1754883272532,2.02658831,121680.0,121670.0,0.12722951]
[1754883272839,2.02858831,121680.0,121670.0,0.12722951]
[1754883273835,2.29591491,121680.0,121670.0,0.36354983]
[1754883274636,2.29591491,121680.0,121670.0,0.19783684]
[1754883274937,0.0821824,121670.0,121660.0,0.00018508]
[1754883275136,0.710309,121670.0,121660.0,0.00018508]
[1754883275333,1.650973,121670.0,121660.0,0.12704901]
[1754883275534,1.650973,121670.0,121660.0,0.20216678]
[1754883275934,0.0822027,121640.0,121630.0,0.47746]
[1754883276134,0.4430027,121640.0,121630.0,0.47746]
[1754883276335,1.2191227,121640.0,121630.0,0.6872155]
[1754883276534,0.4430027,121640.0,121630.0,0.6872789]
[1754883276740,1.2192627,121640.0,121630.0,0.6873789]
[1754883277540,0.4431027,121640.0,121630.0,0.6873789]
[1754883277839,1.2188227,121640.0,121630.0,0.6873789]
[1754883278232,1.2188227,121640.0,121630.0,0.9557055]
[1754883278644,1.2188227,121640.0,121630.0,0.6883789]
[1754883278939,1.24393411,121640.0,121630.0,0.6842789]
[1754883279137,1.24393411,121640.0,121630.0,0.6832789]
[1754883279332,1.24393411,121640.0,121630.0,0.6852789]
[1754883279733,1.24393411,121640.0,121630.0,0.6862789]
[1754883281141,1.24317411,121640.0,121630.0,0.3291089]
[1754883281440,1.24317411,121640.0,121630.0,0.4953589]
[1754883281634,1.24297411,121640.0,121630.0,0.6705789]
[1754883281834,1.24297411,121640.0,121630.0,0.4363989]
[1754883282235,1.24297411,121640.0,121630.0,0.2539289]
[1754883282442,1.51030071,121640.0,121630.0,0.2539289]
[1754883282638,1.51030071,121640.0,121630.0,0.2529289]
[1754883282943,1.94205131,121640.0,121630.0,0.2058189]
[1754883283144,1.67472471,121640.0,121630.0,0.2058189]
[1754883283441,1.16729131,121640.0,121630.0,0.2058189]
[1754883283645,0.0822162,121620.0,121610.0,0.04511]
[1754883283937,2.2069828,121620.0,121610.0,0.46176]
[1754883284145,2.9813028,121620.0,121610.0,0.66793119]
[1754883284545,2.9813028,121620.0,121610.0,0.66802152]
[1754883284747,2.9814028,121620.0,121610.0,0.66802152]
[1754883284942,2.9814028,121620.0,121610.0,0.66902152]
[1754883285338,2.7140762,121620.0,121610.0,0.66902152]
[1754883285644,2.3529162,121620.0,121610.0,0.66902152]
[1754883285944,2.3529162,121620.0,121610.0,0.67202152]
[1754883286541,2.2070828,121620.0,121610.0,0.67202152]
[1754883286943,2.9807228,121620.0,121610.0,0.67202152]
[1754883289349,2.2070828,121620.0,121610.0,0.67202152]
[1754883289542,2.9800828,121620.0,121610.0,0.67202152]
[1754883290751,2.2070828,121620.0,121610.0,0.67202152]
[1754883290953,2.9796028,121620.0,121610.0,0.67202152]
[1754883291139,2.7122762,121620.0,121610.0,0.67202152]
[1754883292751,2.7122762,121620.0,121610.0,0.67002152]
[1754883294645,2.7122762,121620.0,121610.0,0.67412152]
[1754883296956,1.9397562,121620.0,121610.0,0.67412152]
[1754883297156,2.7119162,121620.0,121610.0,0.67412152]
[1754883297956,2.6297,121620.0,121610.0,0.94144812]
[1754883298250,1.9081,121620.0,121610.0,1.30224812]
[1754883299066,1.13594,121620.0,121610.0,1.30224812]
[1754883299250,1.9081,121620.0,121610.0,1.30224812]
[1754883300955,1.13594,121620.0,121610.0,1.30224812]
[1754883301146,1.90806,121620.0,121610.0,1.30224812]
[1754883301353,1.9902762,121620.0,121610.0,1.03492152]
[1754883302548,1.90806,121620.0,121610.0,1.03492152]
[1754883302857,1.13594,121620.0,121610.0,1.30224812]
[1754883303059,1.90806,121620.0,121610.0,1.30224812]
[1754883303261,1.13594,121620.0,121610.0,1.30224812]
[1754883303461,1.90806,121620.0,121610.0,1.30224812]
[1754883304360,1.13594,121620.0,121610.0,1.30224812]
[1754883304663,1.90802,121620.0,121610.0,1.30224812]
[1754883305655,1.2181562,121620.0,121610.0,1.30224812]
[1754883305858,1.9902362,121620.0,121610.0,1.30224812]
[1754883306151,1.9902362,121620.0,121610.0,1.29772152]
[1754883306351,1.9902362,121620.0,121610.0,0.93692152]
[1754883306848,2.3510362,121620.0,121610.0,0.93692152]
[1754883307052,1.8462828,121620.0,121610.0,0.47516152]
[1754883307252,2.3509962,121620.0,121610.0,0.52284152]
[1754883307548,1.5789562,121620.0,121610.0,0.95303152]
[1754883307949,1.90798,121620.0,121610.0,0.95303152]
[1754883308151,2.3509962,121620.0,121610.0,0.95303152]
[1754883309265,2.26878,121620.0,121610.0,0.95303152]
[1754883309456,2.26878,121620.0,121610.0,1.22035812]
[1754883309862,2.26878,121620.0,121610.0,0.95303152]
[1754883312049,1.90798,121620.0,121610.0,0.69023152]
[1754883312757,1.13594,121620.0,121610.0,0.95755812]
[1754883312954,1.90798,121620.0,121610.0,0.95755812]
[1754883313350,1.90798,121620.0,121610.0,1.22035812]
[1754883314262,1.90794,121620.0,121610.0,1.22035812]
[1754883315152,1.13594,121620.0,121610.0,1.58115812]
[1754883315561,1.90794,121620.0,121610.0,1.58115812]
[1754883318368,1.2181562,121620.0,121610.0,1.22035812]
[1754883318568,1.9901562,121620.0,121610.0,0.71626152]
[1754883318760,1.2181562,121620.0,121610.0,0.95303152]
[1754883319271,2.3509162,121620.0,121610.0,0.95303152]
[1754883319863,1.5789562,121620.0,121610.0,0.95303152]
[1754883320066,2.3509162,121620.0,121610.0,0.95303152]
[1754883321362,1.2150762,121620.0,121610.0,0.95303152]
[1754883321670,1.13286,121620.0,121610.0,0.95303152]
[1754883322066,1.13286,121620.0,121610.0,1.22035812]
[1754883322367,1.2150762,121620.0,121610.0,1.22035812]
[1754883322566,1.13286,121620.0,121610.0,1.22035812]
[1754883322767,1.13282,121620.0,121610.0,1.22035812]
[1754883323372,1.2150362,121620.0,121610.0,1.22035812]
[1754883323766,0.8542362,121620.0,121610.0,1.22035812]
[1754883324065,0.7104428,121620.0,121610.0,0.21236152]
[1754883324264,1.47249989,121620.0,121610.0,0.44864452]
[1754883324466,0.70057989,121620.0,121610.0,0.44864452]
[1754883324673,1.47249989,121620.0,121610.0,0.44864452]
[1754883324968,1.47249989,121620.0,121610.0,0.49632452]
[1754883325573,1.47249989,121620.0,121610.0,0.49532452]
[1754883325771,1.47359989,121620.0,121610.0,0.49532452]
[1754883325969,1.47359989,121620.0,121610.0,0.49432452]
[1754883328168,1.47459989,121620.0,121610.0,0.25804152]
[1754883328363,1.20627329,121620.0,121610.0,0.25804152]
[1754883328564,1.47459989,121620.0,121610.0,0.25804152]
[1754883330470,1.47459989,121620.0,121610.0,0.21036152]
[1754883331276,1.20627329,121620.0,121610.0,0.25804152]
[1754883331575,0.70167989,121620.0,121610.0,0.25804152]
[1754883331767,1.20623329,121620.0,121610.0,0.45146152]
[1754883331970,1.20723329,121620.0,121610.0,0.68823152]
[1754883332364,1.20623329,121620.0,121610.0,0.68823152]
[1754883332569,1.20723329,121620.0,121610.0,0.68823152]
[1754883333674,1.20623329,121620.0,121610.0,0.68823152]
[1754883334373,1.47355989,121620.0,121610.0,0.68823152]
[1754883336172,1.20623329,121620.0,121610.0,0.68823152]
[1754883337379,1.47355989,121620.0,121610.0,0.68823152]
[1754883342381,1.47355989,121620.0,121610.0,0.45146152]
[1754883342578,1.20623329,121620.0,121610.0,0.68835152]
[1754883343884,0.43435329,121620.0,121610.0,0.68835152]
[1754883344088,1.20615329,121620.0,121610.0,0.68835152]
[1754883344683,1.47347989,121620.0,121610.0,0.68835152]
[1754883346282,1.20615329,121620.0,121610.0,0.92463452]
[1754883349490,1.47347989,121620.0,121610.0,0.92463452]
[1754883350182,1.20615329,121620.0,121610.0,0.92463452]
[1754883352286,1.20615329,121620.0,121610.0,0.68835152]
[1754883352692,1.47347989,121620.0,121610.0,0.68835152]
[1754883354188,1.20615329,121620.0,121610.0,0.68835152]
[1754883354384,0.43435329,121620.0,121610.0,0.68835152]
[1754883354682,1.20599329,121620.0,121610.0,0.68835152]
[1754883355290,0.4441162,121620.0,121610.0,0.95567812]
[1754883355482,0.3619,121620.0,121610.0,0.95567812]
[1754883355683,1.1335,121620.0,121610.0,0.95567812]
[1754883356990,0.4441162,121620.0,121610.0,0.95667812]
[1754883357192,1.2147162,121620.0,121610.0,0.69035152]
[1754883360390,1.2147162,121620.0,121610.0,0.92663452]
[1754883363889,1.2147162,121620.0,121610.0,0.92253452]
[1754883364393,1.2145962,121620.0,121610.0,0.68625152]
[1754883365288,0.4431162,121620.0,121610.0,0.68625152]
[1754883365495,1.4819228,121620.0,121610.0,0.25594152]
[1754883365793,0.4431162,121620.0,121610.0,0.25594152]
[1754883365994,0.7104428,121620.0,121610.0,0.25594152]
[1754883366296,1.4818828,121620.0,121610.0,0.25594152]
[1754883367493,1.4818828,121620.0,121610.0,0.42126152]
[1754883367795,0.4431162,121620.0,121610.0,0.42126152]
[1754883367995,1.4818828,121620.0,121610.0,0.42126152]
[1754883368190,1.4818828,121620.0,121610.0,0.42026152]
[1754883368500,1.4818828,121620.0,121610.0,0.56471152]
[1754883368686,1.4818828,121620.0,121610.0,0.49609152]
[1754883368887,1.4818428,121620.0,121610.0,0.20626152]
[1754883369092,0.7104428,121620.0,121610.0,0.25537152]
[1754883369293,1.4818428,121620.0,121610.0,0.25537152]
[1754883369495,0.7104428,121620.0,121610.0,0.25537152]
[1754883369795,1.4818428,121620.0,121610.0,0.25537152]
[1754883371094,0.7104428,121620.0,121610.0,0.21036152]
[1754883371396,1.4818428,121620.0,121610.0,0.21036152]
[1754883371797,1.4818428,121620.0,121610.0,0.25537152]
[1754883371995,1.4828428,121620.0,121610.0,0.25537152]
[1754883372196,1.4838428,121620.0,121610.0,0.25537152]
[1754883372897,0.7124428,121620.0,121610.0,0.25537152]
[1754883373098,1.4838028,121620.0,121610.0,0.25537152]
[1754883373498,0.7124428,121620.0,121610.0,0.25537152]
[1754883373898,1.4838028,121620.0,121610.0,0.25537152]
[1754883375599,0.7124428,121620.0,121610.0,0.25537152]
[1754883375992,1.4837628,121620.0,121610.0,0.25537152]
[1754883376504,0.7124428,121620.0,121610.0,0.25537152]
[1754883376803,1.4837628,121620.0,121610.0,0.25537152]
[1754883377005,0.7124428,121620.0,121610.0,0.25537152]
[1754883377503,1.4837628,121620.0,121610.0,0.21036152]
[1754883377800,0.7124428,121620.0,121610.0,0.21036152]